{"text_format":"1","workbook":"xlsx","n_sheets":2,"sheets":["Pasiūlymas","Subtiekėjai"],"not_rendered":{"charts":0,"images":0,"macros":1,"external_links":0,"defined_names":0,"comments":0,"pivot_tables":0},"unopened":[],"bounds":{"document_bytes":16777216,"sheet_cells":100000,"rows_first":2000,"rows_last":500,"rows_between":2000,"halvings":0,"cell_chars":16384,"cell_head_chars":4096},"cells_cut":0,"cells_raw":0,"read":"whole","date_system":"1900"}

{"sheet":"Pasiūlymas","index":0,"n_rows":151,"n_cols":13,"rows_kept":151,"cut":false,"hidden":false,"merged":[[18,0,18,1],[18,2,18,4],[19,0,19,1],[19,2,19,4],[15,0,15,1],[15,2,15,4],[16,0,16,1],[16,2,16,4],[17,0,17,1],[17,2,17,4],[12,0,12,1],[12,2,12,4],[13,0,13,1],[13,2,13,4],[14,0,14,1],[14,2,14,4],[9,0,9,1],[9,2,9,4],[10,0,10,1],[10,2,10,4],[11,0,11,1],[11,2,11,4],[28,1,28,5],[35,1,35,5],[42,1,42,5],[49,1,49,5],[56,1,56,5],[64,1,64,5],[72,1,72,5],[80,1,80,5],[88,1,88,5],[96,1,96,5],[140,1,140,5],[146,1,146,5],[104,1,104,5],[112,1,112,5],[119,1,119,5],[126,1,126,5],[133,1,133,5]]}
["Perkantysis subjektas, kuriam teikiamas pasiūlymas:",null,"AB „Lietuvos geležinkeliai“"]
[]
[null,"PASIŪLYMAS"]
[null,"Specialiųjų geležinkelio riedmenų ir specialiųjų vagonų nuomos paslaugų pirkimas (3 p.o.d. pakartotinis + vagonai)"]
[]
["Data:"]
["Nr.:"]
["Vieta:"]
[]
["Tiekėjo arba tiekėjų grupės narių pavadinimas (-ai)"]
["Tiekėjo arba tiekėjo grupės narių juridinio asmens kodas (-ai) (tuo atveju, jei pasiūlymą teikia fizinis asmuo - verslo pažymėjimo Nr. ar pan.)"]
["Tiekėjo arba tiekėjo grupės narių PVM mokėtojo kodas (-ai)"]
["Tiekėjų grupės narys, atstovaujantis arba vadovaujantis  tiekėjų grupei (pildoma, jei pasiūlymą teikia tiekėjų grupė)"]
["Tiekėjo valdymo ar priežiūros organo narys (-iai) ar kitas asmuo (-ys), turintis (-ys) teisę atstovauti tiekėjui ar jį kontroliuoti, jo vardu priimti sprendimą, sudaryti sandorį"]
["Tiekėjo arba atstovaujančio tiekėjų grupės nario adresas, telefono numeris, fakso numeris, el. paštas"]
["Tiekėjo arba atstovaujančio tiekėjų grupės nario banko pavadinimas, banko kodas, sąskaitos Nr."]
["Asmens, įgalioto pasirašyti sutartį, vardas, pavardė, pareigos"]
["Asmens, atsakingo už pirkimą, vardas, pavardė,  telefono numeris, el. paštas"]
[]
[]
[]
[]
[]
["Siūlomas pirkimo objektas visiškai atitinka pirkimo sąlygose nustatytus reikalavimus ir jo kaina yra:"]
[]
[]
[null,null,null,null,null,null,null,null,null,null,"","",""]
["Nr.","Pavadinimas","Kiekis","Mato vienetas","Kaina be PVM","Suma be PVM"]
["1.","Nesavaeigio kelio klotuvo su mašinistu nuoma, preliminarus kiekis 100 val.",null,null,null,null,null,null,null,""]
["1.1.","Vienos  transportavimo valandos įkainis su paslaugos gavėjo trauka ",1,"val.",42,{"$f":"IF(ISBLANK(E30),\"\", PRODUCT(C30,E30))","v":42}]
["1.2.","Vienos darbo valandos įkainis ",1,"val.",400,{"$f":"IF(ISBLANK(E31),\"\", PRODUCT(C31,E31))","v":400}]
[null,null,null,null,"Suma be PVM",{"$f":"SUM(F30:F31)","v":442},null,null,null,""]
[null,null,null,null,"PVM suma",92.82,null,null,null,null,null,""]
[null,null,null,null,"Suma su PVM",{"$f":"IF(ISBLANK(F33), \"\", SUM(F32:F33))","v":534.81999999999994},null,null,null,null,null,""]
[null,null,null,null,null,null,null,null,null,"","",""]
["2.","Motorinės platformos  su mašinistu nuoma, preliminarus kiekis 100 val.",null,null,null,null,null,null,null,"","",""]
["2.1.","Vienos  transportavimo valandos įkainis su paslaugos gavėjo trauka ",1,"val.",21,{"$f":"IF(ISBLANK(E37),\"\", PRODUCT(C37,E37))","v":21},null,null,null,"","",""]
["2.2.","Vienos darbo valandos įkainis ",1,"val.",205,{"$f":"IF(ISBLANK(E38),\"\", PRODUCT(C38,E38))","v":205}]
[null,null,null,null,"Suma be PVM",{"$f":"SUM(F37:F38)","v":226}]
[null,null,null,null,"PVM suma",47.46,null,null,null,""]
[null,null,null,null,"Suma su PVM",{"$f":"IF(ISBLANK(F40), \"\", SUM(F39:F40))","v":273.45999999999998}]
[null,null,null,null,null,null,null,null,null,null,null,""]
["3.","Nesavaeigio elektrobalastuotuvo su mašinistu nuoma, preliminarus kiekis 100 val.",null,null,null,null,null,null,null,"",null,""]
["3.1.","Vienos  transportavimo valandos įkainis su paslaugos gavėjo trauka ",1,"val.",42,{"$f":"IF(ISBLANK(E44),\"\", PRODUCT(C44,E44))","v":42},null,null,null,null,null,""]
["3.2.","Vienos darbo valandos įkainis ",1,"val.",345,{"$f":"IF(ISBLANK(E45),\"\", PRODUCT(C45,E45))","v":345}]
[null,null,null,null,"Suma be PVM",{"$f":"SUM(F44:F45)","v":387},null,null,null,"","",""]
[null,null,null,null,"PVM suma",81.27,null,null,null,"","",""]
[null,null,null,null,"Suma su PVM",{"$f":"IF(ISBLANK(F47), \"\", SUM(F46:F47))","v":468.27},null,null,null,"","",""]
[]
["4.","Nesavaeigės kelio ištaisymo-pamušimo-apdailos mašinos  su mašinistu nuoma, preliminarus kiekis 100 val."]
["4.1.","Vienos  transportavimo valandos įkainis su paslaugos gavėjo trauka ",1,"val.",81,{"$f":"IF(ISBLANK(E51),\"\", PRODUCT(C51,E51))","v":81}]
["4.2.","Vienos darbo valandos įkainis ",1,"val.",470,{"$f":"IF(ISBLANK(E52),\"\", PRODUCT(C52,E52))","v":470}]
[null,null,null,null,"Suma be PVM",{"$f":"SUM(F51:F52)","v":551}]
[null,null,null,null,"PVM suma",115.71]
[null,null,null,null,"Suma su PVM",{"$f":"IF(ISBLANK(F54), \"\", SUM(F53:F54))","v":666.71}]
[]
["5.","Savaeigės kelio ištaisymo ciklinio veikimo mašinos su mašinistu nuoma, preliminarus kiekis 100 val."]
["5.1.","Vienos  transportavimo valandos įkainis su paslaugos gavėjo trauka ",1,"val.",80.430000000000007,{"$f":"IF(ISBLANK(E58),\"\", PRODUCT(C58,E58))","v":80.430000000000007}]
["5.2.","Vienos  savo eiga važiavimo valandos įkainis \n",1,"val.",710,{"$f":"IF(ISBLANK(E59),\"\", PRODUCT(C59,E59))","v":710}]
["5.3.","Vienos darbo valandos įkainis ",1,"val.",710,{"$f":"IF(ISBLANK(E60),\"\", PRODUCT(C60,E60))","v":710}]
[null,null,null,null,"Suma be PVM",{"$f":"SUM(F58:F60)","v":1500.43}]
[null,null,null,null,"PVM suma",315.08999999999997]
[null,null,null,null,"Suma su PVM",{"$f":"IF(ISBLANK(F62), \"\", SUM(F61:F62))","v":1815.52}]
[]
["6.","Savaeigės iešmų ir kelio ištaisymo mašinos su mašinistu nuoma, preliminarus kiekis 100 val."]
["6.1.","Vienos  transportavimo valandos įkainis su paslaugos gavėjo trauka ",1,"val.",80.430000000000007,{"$f":"IF(ISBLANK(E66),\"\", PRODUCT(C66,E66))","v":80.430000000000007}]
["6.2.","Vienos  savo eiga važiavimo valandos įkainis ",1,"val.",780,{"$f":"IF(ISBLANK(E67),\"\", PRODUCT(C67,E67))","v":780}]
["6.3.","Vienos darbo valandos įkainis ",1,"val.",780,{"$f":"IF(ISBLANK(E68),\"\", PRODUCT(C68,E68))","v":780}]
[null,null,null,null,"Suma be PVM",{"$f":"SUM(F66:F68)","v":1640.43}]
[null,null,null,null,"PVM suma",344.49]
[null,null,null,null,"Suma su PVM",{"$f":"IF(ISBLANK(F70), \"\", SUM(F69:F70))","v":1984.92}]
[]
["7.","Savaeigės iešmų ir kelio ištaisymo mašinossu mašinistu nuoma, preliminarus kiekis 100 val."]
["7.1.","Vienos  transportavimo valandos įkainis su paslaugos gavėjo trauka ",1,"val.",null,{"$f":"IF(ISBLANK(E74),\"\", PRODUCT(C74,E74))","v":""}]
["7.2.","Vienos  savo eiga važiavimo valandos įkainis ",1,"val.",null,{"$f":"IF(ISBLANK(E75),\"\", PRODUCT(C75,E75))","v":""}]
["7.3.","Vienos darbo valandos įkainis ",1,"val.",null,{"$f":"IF(ISBLANK(E76),\"\", PRODUCT(C76,E76))","v":""}]
[null,null,null,null,"Suma be PVM",{"$f":"SUM(F74:F76)","v":0}]
[null,null,null,null,"PVM suma"]
[null,null,null,null,"Suma su PVM",{"$f":"IF(ISBLANK(F78), \"\", SUM(F77:F78))","v":""}]
[]
["8.","Savaeigės skaldos planiravimo su mašinistu nuoma, preliminarus kiekis 100 val."]
["8.1.","Vienos  transportavimo valandos įkainis su paslaugos gavėjo trauka ",1,"val.",70.38,{"$f":"IF(ISBLANK(E82),\"\", PRODUCT(C82,E82))","v":70.38}]
["8.2.","Vienos  savo eiga važiavimo valandos įkainis ",1,"val.",670,{"$f":"IF(ISBLANK(E83),\"\", PRODUCT(C83,E83))","v":670}]
["8.3.","Vienos darbo valandos įkainis",1,"val.",670,{"$f":"IF(ISBLANK(E84),\"\", PRODUCT(C84,E84))","v":670}]
[null,null,null,null,"Suma be PVM",{"$f":"SUM(F82:F84)","v":1410.38}]
[null,null,null,null,"PVM suma",296.18]
[null,null,null,null,"Suma su PVM",{"$f":"IF(ISBLANK(F86), \"\", SUM(F85:F86))","v":1706.5600000000002}]
[]
["9.","Savaeigio kelio stabilizatoriaus su mašinistu nuoma, preliminarus kiekis 100 val."]
["9.1.","Vienos  transportavimo valandos įkainis su paslaugos gavėjo trauka ",1,"val.",42,{"$f":"IF(ISBLANK(E90),\"\", PRODUCT(C90,E90))","v":42}]
["9.2.","Vienos  savo eiga važiavimo valandos įkainis ",1,"val.",610,{"$f":"IF(ISBLANK(E91),\"\", PRODUCT(C91,E91))","v":610}]
["9.3.","Vienos darbo valandos įkainis",1,"val.",610,{"$f":"IF(ISBLANK(E92),\"\", PRODUCT(C92,E92))","v":610}]
[null,null,null,null,"Suma be PVM",{"$f":"SUM(F90:F92)","v":1262}]
[null,null,null,null,"PVM suma",265.02]
[null,null,null,null,"Suma su PVM",{"$f":"IF(ISBLANK(F94), \"\", SUM(F93:F94))","v":1527.02}]
[]
["10.","Savaeigės skaldos valymo su mašinistu nuoma, preliminarus kiekis 100 val."]
["10.1.","Vienos  transportavimo valandos įkainis su paslaugos gavėjo trauka ",1,"val.",80.430000000000007,{"$f":"IF(ISBLANK(E98),\"\", PRODUCT(C98,E98))","v":80.430000000000007}]
["10.2.","Vienos  savo eiga važiavimo valandos įkainis ",1,"val.",595,{"$f":"IF(ISBLANK(E99),\"\", PRODUCT(C99,E99))","v":595}]
["10.3.","Vienos darbo valandos įkainis",1,"val.",595,{"$f":"IF(ISBLANK(E100),\"\", PRODUCT(C100,E100))","v":595}]
[null,null,null,null,"Suma be PVM",{"$f":"SUM(F98:F100)","v":1270.43}]
[null,null,null,null,"PVM suma",266.79000000000002]
[null,null,null,null,"Suma su PVM",{"$f":"IF(ISBLANK(F102), \"\", SUM(F101:F102))","v":1537.22}]
[]
["11.","Savaeigės skaldos valymo mašinos su mašinistu nuoma, preliminarus kiekis 100 val."]
["11.1.","Vienos  transportavimo valandos įkainis su paslaugos gavėjo trauka ",1,"val.",null,{"$f":"IF(ISBLANK(E106),\"\", PRODUCT(C106,E106))","v":""}]
["11.2.","Vienos  savo eiga važiavimo valandos įkainis ",1,"val.",null,{"$f":"IF(ISBLANK(E107),\"\", PRODUCT(C107,E107))","v":""}]
["11.3.","Vienos darbo valandos įkainis",1,"val.",null,{"$f":"IF(ISBLANK(E108),\"\", PRODUCT(C108,E108))","v":""}]
[null,null,null,null,"Suma be PVM",{"$f":"SUM(F106:F108)","v":0}]
[null,null,null,null,"PVM suma"]
[null,null,null,null,"Suma su PVM",{"$f":"IF(ISBLANK(F110), \"\", SUM(F109:F110))","v":""}]
[]
["12.","Užteršto grunto išvežimo sąstato su mašinistu nuoma, preliminarus kiekis 100 val."]
["12.1.","Vienos  transportavimo valandos įkainis su paslaugos gavėjo trauka ",1,"val.",63,{"$f":"IF(ISBLANK(E114),\"\", PRODUCT(C114,E114))","v":63}]
["12.2.","Vienos darbo valandos įkainis",1,"val.",600,{"$f":"IF(ISBLANK(E115),\"\", PRODUCT(C115,E115))","v":600}]
[null,null,null,null,"Suma be PVM",{"$f":"SUM(F114:F115)","v":663}]
[null,null,null,null,"PVM suma",139.22999999999999]
[null,null,null,null,"Suma su PVM",{"$f":"IF(ISBLANK(F117), \"\", SUM(F116:F117))","v":802.23}]
[]
["13.","Pabėgių keitimo komplekso su mašinistu nuoma, preliminarus kiekis 100 val."]
["13.1.","Vienos  transportavimo valandos įkainis su paslaugos gavėjo trauka ",1,"val.",103,{"$f":"IF(ISBLANK(E121),\"\", PRODUCT(C121,E121))","v":103}]
["13.2.","Vienos darbo valandos įkainis",1,"val.",1300,{"$f":"IF(ISBLANK(E122),\"\", PRODUCT(C122,E122))","v":1300}]
[null,null,null,null,"Suma be PVM",{"$f":"SUM(F121:F122)","v":1403}]
[null,null,null,null,"PVM suma",294.63]
[null,null,null,null,"Suma su PVM",{"$f":"IF(ISBLANK(F124), \"\", SUM(F123:F124))","v":1697.63}]
[]
["14.","Dozuojamojo vagono su aptarnaujančiu asmeniu nuoma, preliminarus kiekis 160 val."]
["14.1.","Dozuojamojo vagono su aptarnaujančiu asmeniu valandos nuomos  įkainis ",1,"val.",20.6,{"$f":"IF(ISBLANK(E128),\"\", PRODUCT(C128,E128))","v":20.6}]
["14.2.","Dozuojamojo vagono be aptarnaujančio asmens valandos nuomos  įkainis ",1,"val.",3.67,3.67]
[null,null,null,null,"Suma be PVM",24.27]
[null,null,null,null,"PVM suma",5.0999999999999996]
[null,null,null,null,"Suma su PVM",{"$f":"IF(ISBLANK(F131), \"\", SUM(F130:F131))","v":29.369999999999997}]
[]
["15.","Savivarčio vagono su aptarnaujančiu asmeniu nuoma, preliminarus kiekis 160 val."]
["15.1.","Savivarčio vagono su aptarnaujančiu asmeniu valandos nuomos  įkainis ",1,"val.",20.23,{"$f":"IF(ISBLANK(E135),\"\", PRODUCT(C135,E135))","v":20.23}]
["15.2.","Savivarčio vagono be aptarnaujančio asmens valandos nuomos  įkainis ",1,"val.",3.67,3.67]
[null,null,null,null,"Suma be PVM",23.9]
[null,null,null,null,"PVM suma",5.0199999999999996]
[null,null,null,null,"Suma su PVM",{"$f":"IF(ISBLANK(F138), \"\", SUM(F137:F138))","v":28.919999999999998}]
[]
["16.","Platforminio vagono su unifikuota nuimama įranga nuoma, preliminarus kiekis 160 val."]
["16.1.","Valandos nuomos  įkainis ",1,"val.",2.0699999999999998,{"$f":"IF(ISBLANK(E142),\"\", PRODUCT(C142,E142))","v":2.0699999999999998}]
[null,null,null,null,"Suma be PVM",{"$f":"SUM(F142:F142)","v":2.0699999999999998}]
[null,null,null,null,"PVM suma",0.43]
[null,null,null,null,"Suma su PVM",{"$f":"IF(ISBLANK(F144), \"\", SUM(F143:F144))","v":2.5}]
[]
["17.","Klasinio vagono nuoma, preliminarus kiekis 160 val."]
["17.1.","Valandos nuomos  įkainis ",1,"val.",10.7,{"$f":"IF(ISBLANK(E148),\"\", PRODUCT(C148,E148))","v":10.7}]
[null,null,null,null,"Suma be PVM",{"$f":"SUM(F148:F148)","v":10.7}]
[null,null,null,null,"PVM suma",2.25]
[null,null,null,null,"Suma su PVM",{"$f":"IF(ISBLANK(F150), \"\", SUM(F149:F150))","v":12.95}]

{"sheet":"Subtiekėjai","index":1,"n_rows":100,"n_cols":9,"rows_kept":100,"cut":false,"hidden":false,"merged":[[32,0,32,3],[32,4,32,9],[19,0,19,10],[16,1,16,3],[15,1,15,3],[22,0,22,9],[23,0,23,9],[25,0,25,9],[29,0,29,3],[29,4,29,9],[17,1,17,3],[17,4,17,5],[17,6,17,7],[17,8,17,9],[21,0,21,3],[21,4,21,9],[14,1,14,3],[15,4,15,5],[16,4,16,5],[8,0,8,1],[8,2,8,4],[8,5,8,7],[12,6,12,7],[13,6,13,7],[14,6,14,7],[15,6,15,7],[16,6,16,7],[13,1,13,3],[12,1,12,3],[12,4,12,5],[13,4,13,5],[14,4,14,5],[8,8,8,9],[10,0,10,9],[6,0,6,1],[6,2,6,4],[6,5,6,7],[6,8,6,9],[7,0,7,1],[7,2,7,4],[7,5,7,7],[7,8,7,9],[1,0,1,10],[5,0,5,1],[5,2,5,4],[5,5,5,7],[5,8,5,9],[4,0,4,1],[4,2,4,4],[4,5,4,7],[4,8,4,9],[3,0,3,1],[3,2,3,4],[3,5,3,7],[3,8,3,9],[12,8,12,9],[13,8,13,9],[14,8,14,9],[15,8,15,9],[16,8,16,9]]}
[]
["Subtiekėjai ir jiems perduodama vykdyti pirkimo sutarties dalis:"]
[]
["Eil. Nr",null,"Subtiekėjo pavadinimas",null,null,"Pirkimo objekto dalies, perduodamos vykdyti subtiekėjui, aprašymas",null,null,"Procentas perduodamos vykdyti pirkimo objekto dalies nuo pasiūlymo kainos su PVM (pildoma, jei ūkio subjektas vykdys sutartį)"]
[]
[]
[]
[]
[]
[]
["Kartu su pasiūlymu pateikiami šie dokumentai:"]
[]
["Eil.Nr.","Dokumentas",null,null,"Ar dokumnetas konfidencialus? (Taip/Ne)",null,"Prisegtos bylos (failo) pavadinimas ",null,"Paaiškinimas, kokia konkreti informacija dokumente yra konfidenciali"]
[]
[]
[]
[]
[]
[]
["Pasirašydamas šį pasiūlymą, tvirtintu, kad:\n1) pasiūlymo dokumentuose pateikti duomenys yra tikri;\n2) siūlomas Pirkimo objektas visiškai atitinka Pirkimo dokumentuose nustatytus reikalavimus;\n3) sutinku su visomis Pirkimo dokumentuose nustatytomis sąlygomis;\n4) pasiūlymas galioja iki termino, nustatyto Pirkimo dokumentuose; \n5) mes esame / nesame (nereikalingą išbraukti) laikomi asocijuotais (susijusiais) su Perkančiuoju subjektu pagal Lietuvos Respublikoje galiojančių teisės aktų (Lietuvos Respublikos pelno mokesčio, Lietuvos Respublikos pridėtinės vertės mokesčio ir Lietuvos Respublikos gyventojų pajamų mokesčio įstatymų) nuostatas; \n6) savo pasiūlymo galiojimą užtikrinsiu pagal Specialiųjų sąlygų 6.1 punktą (jei taikoma)."]
[]
["Pasiūlymo galiojimo užtikrinimui pateikiame :"]
[]
["(Nurodyti užtikrinimo būdą, dydį, dokumentus)"]
[]
["\nPasiūlymas galioja iki termino, nustatyto pirkimo dokumentuose.\n\nPasiūlymo neatskiriama dalis yra (rašoma, jeigu buvo reikalauta prie pasiūlymo pridėti atitinkamą dokumentą)"]
[]
[]
[]
["Tiekėjo arba jo įgalioto asmens pareigų pavadinimas"]
[]
[]
["Pasirašančio asmens vardas ir pavardė"]
[]
[]
[]
[]
[]
[]
[]
[]
[]
[]
[]
[]
[]
[]
[]
[]
[]
[]
[]
[]
[]
[]
[]
[]
[]
[]
[]
[]
[]
[]
[]
[]
[]
[]
[]
[]
[]
[]
[]
[]
[]
[]
[]
[]
[]
[]
[]
[]
[]
[]
[]
[]
[]
[]
[]
[]
[]
[]
[]
[]
[]
[]
[]
[]
[]
[]
["10189 2019-01-07 14:35:33"]